Cogmind - Beta 10.1 @@@ ROGUE MODE // 2020.09.21 @ 08:26:49 // AFD2020/Player2 Player: DragoX Result: Core destroyed Performance ------------- Evolutions (2) 1000 Regions Visited (5) 1000 Robots Destroyed (68) 340 Value Destroyed (1717) 1717 Prototype IDs (24) 480 Alien Tech Used (0) 0 Bonus (1237) 1237 TOTAL SCORE: 5774 Bonus ------- High Alert Combat Kills 560 Follower Combat Kills 1934 Aligned with FarCom 300 Friendly Fire -1557 Cogmind --------- Core Integrity 0/550 Matter 295/300 Energy 44/140 System Corruption 0% Temperature Cool (0) Movement Walking (300) Ox6 Location -8/Materials Parts ------- > --- POWER (1) -------- Light Deuterium Engine > --- PROPULSION (2) --- Carbon-fiber Leg > --- UTILITY (6) ------ Improved Heat Sink Large Storage Unit Large Storage Unit Large Storage Unit High-capacity Storage Unit System Backup Module > --- WEAPON (2) ------- Shock Bomb Launcher Rocket Launcher > --- INVENTORY (30) --- Light Nuclear Core Aluminum Leg Aluminum Leg Improved Hover Unit Improved Hover Unit Improved Hover Unit Improved Hover Unit Advanced Sensor Array Salvage Targeting Computer Improved Targeting Computer Improved ECM Suite Improved Power Shielding Improved Utility Shielding Hacking Suite System Shield System Shield Heavy EM Pulse Gun Heavy EM Shotgun Arc Projector Electrolaser Heavy Particle Gun Faulty Precision Beam Rifle EM Pulse Cannon Assault Cannon Shock Bomb Launcher Mini Grenade Launcher Improved Grenade Launcher Improved Datajack Field Lobotomy Kit Peak State ------------ > --- POWER ------------ Light Deuterium Engine > --- PROPULSION ------- Carbon-fiber Leg Carbon-fiber Leg > --- UTILITY ---------- Improved Heat Sink Large Storage Unit Large Storage Unit Large Storage Unit High-capacity Storage Unit System Backup Module > --- WEAPON ----------- Arc Projector Arc Projector > --- INVENTORY -------- Deuterium Engine Light Nuclear Core Aluminum Leg Aluminum Leg Aluminum Leg Carbon-fiber Leg Hover Unit Improved Hover Unit Improved Hover Unit Improved Hover Unit Improved Hover Unit Advanced Sensor Array Salvage Targeting Computer Light Armor Plating Hacking Suite System Shield Heavy EM Pulse Gun Arc Projector Arc Projector Electrolaser EM Pulse Cannon Shock Bomb Launcher Rocket Launcher Mini Grenade Launcher Improved Grenade Launcher Improved Datajack Field Lobotomy Kit [Rating: 35] Favorites ----------- Power Light Ion Engine Engine Light Ion Engine Power Core Light Nuclear Core Propulsion Aluminum Leg Leg Aluminum Leg Hover Unit Hover Unit Utility Large Storage Unit Device Improved Heat Sink Storage Large Storage Unit Protection Light Armor Plating Weapon Light Assault Rifle Energy Gun EM Pulse Gun Ballistic Gun Light Assault Rifle Ballistic Cannon Assault Cannon Launcher Rocket Launcher Special Weapon Field Lobotomy Kit Build | -11 -10 -10 -10 -9 -8 ------- Run | Scr Mat Min Exi Min Mat Slots Evolved 4 | . . . . . 4 Power . | . . . . . . Propulsion . | . . . . . . Utility 4 | . . . . . 4 Weapon . | . . . . . . Parts Attached 66 | 6 5 . . 6 49 Power 10 | 1 1 . . 1 7 Engine 6 | 1 1 . . 1 3 Core 4 | . . . . . 4 Reactor . | . . . . . . Propulsion 23 | 2 2 . . . 19 Treads . | . . . . . . Leg 19 | 2 2 . . . 15 Wheel . | . . . . . . Hover 4 | . . . . . 4 Flight . | . . . . . . Utility 9 | 1 1 . . 1 6 Device 2 | . . . . . 2 Storage 5 | 1 1 . . 1 2 Processor . | . . . . . . Hackware . | . . . . . . Protection 2 | . . . . . 2 Artifact . | . . . . . . Weapon 24 | 2 1 . . 4 17 Energy Gun 12 | 1 1 . . 2 8 Energy Cannon . | . . . . . . Ballistic Gun 4 | 1 . . . 1 2 Ballistic Cannon 1 | . . . . . 1 Launcher 6 | . . . . . 6 Special Weapon 1 | . . . . 1 . Impact Weapon . | . . . . . . Slashing Weapon . | . . . . . . Piercing Weapon . | . . . . . . Special Melee Weapon . | . . . . . . Unidentified Prototypes 1 | . . . . . 1 Parts Lost 18 | . . . . 4 14 Power 2 | . . . . . 2 Propulsion 7 | . . . . 1 6 Utility 1 | . . . . . 1 Weapon 8 | . . . . 3 5 Highest Loss Streak 4 | . . . . 2 4 Average Slot Usage (%) 88 | . 98 100 100 87 83 Engine 8 | . 14 14 14 14 4 Core 2 | . . . . . 4 Leg 21 | . 27 28 28 25 16 Device 4 | . . . . . 9 Storage 28 | . 26 28 28 27 29 Protection 1 | . . . . . 2 Energy Gun 6 | . 14 14 14 4 5 Ballistic Gun 9 | . 14 14 14 14 4 Ballistic Cannon 1 | . . . . . 2 Launcher 1 | . . . . . 3 Naked Turns . | . . . . . . Heaviest Build 103 | 9 42 42 42 55 103 Greatest Support 30 | 20 20 20 20 20 30 Greatest Overweight (x) 8 | . 4 2 2 5 8 Average Overweight (x) 2 | . 1 2 2 2 3 Largest Inventory Capacity 30 | 6 14 14 14 18 30 Average Capacity 19 | 5 13 14 14 17 25 Most Carried 30 | 6 5 3 4 6 30 Average Carried 11 | 4 2 3 3 4 20 Final Capacity 30 | 6 14 14 14 18 30 Final Carried 29 | 6 3 3 4 5 29 Class Distribution -------------------- 65% | Mutant 30% | Hauler-Mutant 4% | Scavenger-Mutant Dominant Class ---------------- Mutant | -10/Materials Mutant | -10/Mines Mutant | -10/Exiles Mutant | -9/Mines Hauler-Mutant | -8/Materials Resources | -11 -10 -10 -10 -9 -8 ----------- Run | Scr Mat Min Exi Min Mat Matter Collected 1650 | 350 55 . . 165 1080 Remotely . | . . . . . . Salvage Created 2084 | 141 400 . . 164 1379 Parts 108 | 8 26 . . 15 59 Haulers Intercepted 4 | . 1 . . . 3 Recyclers Shooed . | . . . . . . Parts Field Recycled . | . . . . . . Retrieved Matter . | . . . . . . Parts Self-Destructed . | . . . . . . Prevented . | . . . . . . Kills | -11 -10 -10 -10 -9 -8 ------- Run | Scr Mat Min Exi Min Mat Combat Hostiles Destroyed 45 | . 7 . . 11 27 Guns 25 | . 6 . . 9 10 Cannons 7 | . . . . . 7 AOE 13 | . 1 . . 2 10 Classes Destroyed 12 | 2 6 . . . 4 Worker 7 | 4 . . . . 3 Builder 3 | . 1 . . . 2 Tunneler 2 | . 1 . . . 1 Hauler 4 | . 1 . . . 3 Recycler 3 | 1 1 . . . 1 Watcher 4 | . 2 . . . 2 Swarmer 15 | . 3 . . 11 1 Grunt 18 | . 4 . . . 14 Brawler 4 | . . . . . 4 Duelist 3 | . . . . . 3 Protector 1 | . . . . . 1 Sentry 4 | . . . . . 4 Best Kill Streak 8 | 2 6 . . 3 8 Combat Bots Only 5 | . 5 . . 3 5 Max Kills in Single Turn 8 | 1 2 . . 2 8 Gunslinging . | . . . . . . Exploded 4 | . 1 . . 2 4 Melee . | . . . . . . Uniques/NPCs Destroyed . | . . . . . . Combat | -11 -10 -10 -10 -9 -8 -------- Run | Scr Mat Min Exi Min Mat Damage Taken 3075 | . 194 . . 472 2409 Core 508 | . 20 . . 107 381 Absorbed by Shields . | . . . . . . Core Remaining (%) 64 | 100 . . . 28 . Volleys Fired 220 | 27 26 . . 41 126 Largest 2 | 1 2 . . 2 2 Hottest 110 | 40 60 . . 65 110 Shots Fired 329 | 27 52 . . 49 201 Gun 261 | 27 52 . . 49 133 Cannon 44 | . . . . . 44 Launcher 24 | . . . . . 24 Special . | . . . . . . Kinetic 171 | . 26 . . 41 104 Thermal 39 | 27 . . . . 12 Explosive 13 | . . . . . 13 Electromagnetic 106 | . 26 . . 8 72 Robot Hit Streak 12 | 3 4 . . 3 12 Robot Miss Streak 6 | 4 3 . . 6 6 Penetration Max . | . . . . . . Secondary Targets 2 | . 2 . . . . Max Gunslinging Chain 1 | . 1 . . . . Shots Hit Robots 184 | 15 23 . . 26 120 Core Hits 125 | 6 18 . . 12 89 Critical Hits 1 | . . . . . 1 Critical Kills . | . . . . . . Critical Parts Destroyed 1 | . . . . . 1 Melee Attacks . | . . . . . . Impact . | . . . . . . Slashing . | . . . . . . Piercing . | . . . . . . Sneak Attacks . | . . . . . . Combat Hostiles . | . . . . . . Follow-up Attacks . | . . . . . . Damage Inflicted 5462 | 206 628 . . 423 4205 Guns 2220 | 206 309 . . 312 1393 Cannons 643 | . . . . . 643 Explosions 2592 | . 319 . . 111 2162 Melee . | . . . . . . Ramming 7 | . . . . . 7 Kinetic 1686 | . 59 . . 272 1355 Thermal 1286 | 206 319 . . 111 650 Explosive 1145 | . . . . . 1145 Electromagnetic 1338 | . 250 . . 40 1048 Impact . | . . . . . . Slashing . | . . . . . . Piercing . | . . . . . . Highest Corruption 2 | . 2 2 2 2 1 Average Corruption 1 | . 2 2 2 2 1 Corruption Purged 1 | . . . . . 1 Effects 36 | . 2 4 10 18 2 Message Errors 13 | . 1 3 3 6 . Heat Flow Errors 9 | . 1 . 3 5 . Energy Discharges 3 | . . . . 3 . Data Loss (minor) 7 | . . 1 4 2 . Targeting Errors 4 | . . . . 2 2 Overload Shots . | . . . . . . Overflow Damage 161 | . . . . . 161 Projectiles 9 | . . . . . 9 Explosions 152 | . . . . . 152 Melee . | . . . . . . Knockbacks 4 | . . . . . 4 Impact . | . . . . . . Kinetic 4 | . . . . . 4 Secondary . | . . . . . . Self-Inflicted Damage 314 | . . . . 30 284 Shots 11 | . . . . 1 10 Rammed 1 | . . . . . 1 Targets Rammed 2 | . . . . . 2 Kicked 1 | . . . . . 1 Crushed . | . . . . . . Highest Temperature 260 | . 260 . 168 193 112 Average Temperature 42 | . 40 . 83 62 24 Received Heat Transfer 873 | . 90 . . . 783 Siege Activations . | . . . . . . Robots Corrupted . | . . . . . . Combat Hostiles . | . . . . . . Parts Fried 2 | . . . . . 2 Impact Corruptions . | . . . . . . Robots Melted . | . . . . . . Combat Hostiles . | . . . . . . Parts Melted 3 | . 1 . . . 2 Heat Transferred 1394 | 475 162 . . 112 645 Parts Sabotaged . | . . . . . . Parts Stolen . | . . . . . . Parts Stripped . | . . . . . . Power Chain Reactions 6 | . 1 . . 1 4 Missiles Intercepted . | . . . . . . Alert | -11 -10 -10 -10 -9 -8 ------- Run | Scr Mat Min Exi Min Mat Peak Influence 1970 | 25 545 156 . 328 1970 Initial 156 | . 16 156 . . 94 Average 521 | 10 256 156 . 106 825 Maximum Alert Level 5 | . 2 . . 1 5 Low Security (%) 45 | 100 40 100 . 82 20 Level 1 10 | . 21 . . 17 7 Level 2 7 | . 38 . . . 7 Level 3 17 | . . . . . 31 Level 4 13 | . . . . . 23 Level 5 5 | . . . . . 9 High Security . | . . . . . . Max Security . | . . . . . . Squads Dispatched 25 | . 5 . . 1 19 Investigation 9 | . 4 . . 1 4 Extermination . | . . . . . . Reinforcement 6 | . 1 . . . 5 Assault 7 | . . . . . 7 Garrison 3 | . . . . . 3 Intercept . | . . . . . . Construction Impeded 1 | . . . . . 1 Haulers Reinforced . | . . . . . . Stealth | -11 -10 -10 -10 -9 -8 --------- Run | Scr Mat Min Exi Min Mat Distress Signals 8 | . 1 1 . . 6 Communications Jammed . | . . . . . . Distress Signals . | . . . . . . Times Spotted 145 | . 19 . . 21 105 Peak Tracking Total 7 | . 7 . . 4 7 Tactical Retreats 5 | . . . . 2 3 Traps | -11 -10 -10 -10 -9 -8 ------- Run | Scr Mat Min Exi Min Mat Traps Triggered 3 | . 1 . . . 2 Indirectly . | . . . . . . Trap Hack Attempts . | . . . . . . Triggered . | . . . . . . Disarmed . | . . . . . . Reprogrammed . | . . . . . . Reused . | . . . . . . Traps Extracted . | . . . . . . Installed . | . . . . . . Triggered . | . . . . . . Machines | -11 -10 -10 -10 -9 -8 ---------- Run | Scr Mat Min Exi Min Mat Machines Disabled 12 | . 2 . . 1 9 Max in Single Turn 2 | . 2 . . 1 2 Garrison Access 1 | . . . . . 1 Machines Sabotaged . | . . . . . . Garrisons Compromised . | . . . . . . Overloaded Fab Kills . | . . . . . . Fab Network Shutdowns . | . . . . . . Hacking | -11 -10 -10 -10 -9 -8 --------- Run | Scr Mat Min Exi Min Mat Machines Accessed 15 | . 5 . 2 1 7 Terminals 5 | . 2 . . 1 2 Fabricators . | . . . . . . Repair Stations 2 | . 1 . . . 1 Recycling Units 3 | . 2 . . . 1 Scanalyzers 2 | . . . . . 2 Garrison Access 1 | . . . . . 1 Total Hacks 40 | . 10 . 2 3 25 Successful 27 | . 7 . 2 2 16 Failed 13 | . 3 . . 1 9 Catastrophic 4 | . 1 . . . 3 Database Lockouts . | . . . . . . Manual 26 | . 10 . 1 3 12 Terminals 16 | . 6 . . 3 7 Fabricators . | . . . . . . Repair Stations 3 | . 1 . . . 2 Recycling Units 8 | . 3 . . . 5 Scanalyzers 10 | . . . . . 10 Garrison Access 1 | . . . . . 1 Terminal Hacks 4 | . . . 2 . 2 Record 1 | . . . 1 . . Unreport Threat 2 | . . . . . 2 EX-Prototype ID Bank 1 | . . . 1 . . Fabricator Hacks . | . . . . . . Repair Station Hacks 2 | . . . . . 2 Scan Component 1 | . . . . . 1 Repair 1 | . . . . . 1 Recycling Unit Hacks . | . . . . . . Scanalyzer 7 | . . . . . 7 Insert Component 3 | . . . . . 3 Analyze 4 | . . . . . 4 Garrison Access Hacks 1 | . . . . . 1 Seal Access 1 | . . . . . 1 Unauthorized Hacks 13 | . 7 . . 2 4 Terminals 5 | . 3 . . 2 . Track 1 | . 1 . . . . Detonate 2 | . 1 . . 1 . Sabotage 2 | . 1 . . 1 . Fabricators . | . . . . . . Repair Stations 1 | . 1 . . . . Mechanics 1 | . 1 . . . . Recycling Units 7 | . 3 . . . 4 Monitor 2 | . 1 . . . 1 Reject 2 | . 1 . . . 1 Recyclers 2 | . 1 . . . 1 Mask 1 | . . . . . 1 Scanalyzers . | . . . . . . Garrison Access . | . . . . . . Data Cores Recovered . | . . . . . . Used . | . . . . . . Hacking Detections 9 | . 3 . . 1 5 Full Trace Events 3 | . 1 . . . 2 Feedback Events . | . . . . . . Feedback Blocked . | . . . . . . Robot Schematics Acquired . | . . . . . . Robots Built . | . . . . . . Matter . | . . . . . . Time . | . . . . . . Total Robot Build Rating . | . . . . . . Part Schematics Acquired 2 | . . . . . 2 Parts Built . | . . . . . . Matter . | . . . . . . Time . | . . . . . . Total Part Build Rating . | . . . . . . Parts Repaired 1 | . . . . . 1 Time 26 | . . . . . 26 Parts Recycled . | . . . . . . Recycled Matter . | . . . . . . Retrieved Matter . | . . . . . . Retrieved Components . | . . . . . . Parts Scanalyzed 2 | . . . . . 2 Part Schematics Acquired 2 | . . . . . 2 Parts Damaged . | . . . . . . Bothacking | -11 -10 -10 -10 -9 -8 ------------ Run | Scr Mat Min Exi Min Mat Used RIF Installer . | . . . . . . Robots Hacked . | . . . . . . Non-combat . | . . . . . . Combat . | . . . . . . Robot Hacks Applied . | . . . . . . Relay Couplers Released . | . . . . . . Robots Rewired . | . . . . . . Allies Hacked . | . . . . . . Hacks Repelled . | . . . . . . Allies | -11 -10 -10 -10 -9 -8 -------- Run | Scr Mat Min Exi Min Mat Total Allies 3 | . 1 . . 2 . Largest Group 3 | . 1 1 1 3 2 Highest-Rated Group 101 | . 57 57 57 101 100 Highest-Rated Ally 85 | . 57 57 57 58 85 Total Orders . | . . . . . . Ally Attacks 199 | . 29 . . 34 136 Total Damage 7154 | . 408 . . 732 6014 Kills 85 | . 8 . . 11 66 Allies Corrupted . | . . . . . . Allies Melted . | . . . . . . Intel | -11 -10 -10 -10 -9 -8 ------- Run | Scr Mat Min Exi Min Mat Robot Analysis Total . | . . . . . . Derelict Logs Recovered 1 | . . . . 1 . Drone Launches . | . . . . . . Drone Recoveries . | . . . . . . Exploration | -11 -10 -10 -10 -9 -8 ------------- Run | Scr Mat Min Exi Min Mat Turns Passed 7281 | 399 522 174 932 1657 3597 Spaces Moved 2711 | 169 191 78 441 644 1188 Core 6 | 6 . . . . . Treads . | . . . . . . Legs 2638 | 163 191 78 441 644 1121 Wheels . | . . . . . . Hover 67 | . . . . . 67 Flight . | . . . . . . Fastest Speed 50 | 50 120 180 180 150 180 Average Speed 197 | 117 173 180 180 190 224 Slowest Speed 480 | 120 240 180 180 270 480 Overloaded Moves . | . . . . . . Propulsion Burnouts . | . . . . . . Robots Hopped . | . . . . . . Cave-ins Triggered . | . . . . . . Exploration Rate (%) 54 | 9 40 28 78 90 84 Regions Visited 5 Branch Regions 3 Pre-discovered Areas 3 | . . . 1 2 . Known Exits Taken . | . . . . . . Unknown Exits Taken 5 | 1 1 1 1 1 . Scrap Searched 2 | . . . . 2 . Spaces Dug 10 | . . . . . 10 Terrain Destroyed 146 | . 30 . . 2 114 Melee . | . . . . . . Projectile 5 | . . . . . 5 AOE 141 | . 30 . . 2 109 Terrain Rammed . | . . . . . . Walls Destroyed . | . . . . . . Machines Disabled . | . . . . . . Actions | -11 -10 -10 -10 -9 -8 --------- Run | Scr Mat Min Exi Min Mat Total 4332 | 341 340 112 580 1032 1927 Wait 1234 | 131 101 35 139 334 494 Move 2706 | 168 190 77 440 643 1188 Hop . | . . . . . . Pick Up 66 | 9 8 . 1 5 43 Fast Attach 12 | 3 . . . . 9 Attach 37 | 3 4 . . 5 25 Detach 10 | . . . . 1 9 Swap 17 | . 1 . . 1 15 Drop 28 | . 10 . . 2 16 Fire 220 | 27 26 . . 41 126 Melee . | . . . . . . Ram . | . . . . . . Kick 2 | . . . . . 2 Crush . | . . . . . . Escape Stasis . | . . . . . . Rewire . | . . . . . . Trap . | . . . . . . Miscellaneous . | . . . . . . Route ------- -11/Scrapyard -10/Materials -10/Mines -10/Exiles -9/Mines (discovered 2 exits: *Mat x2) -8/Materials (discovered 3 exits: [*Fac x3]) History --------- Turn | Location | Event 5 | -11/Scrapyard | Discovered new exit (range 16) 400 | -11/Scrapyard | Entered Materials 432 | -10/Materials | Build established: Mutant 848 | -10/Materials | Discovered new exit (range 11) 922 | -10/Materials | Entered Mines 922 | -10/Mines | Accompanied by 1 ally 923 | -10/Mines | Assembled infested the area 924 | -10/Mines | Met a Derelict bent on vengeance 1078 | -10/Mines | Deemed a non-threat by the Exiles lab entrance 1078 | -10/Mines | Discovered new exit (range 5) 1096 | -10/Mines | Entered Exiles 1096 | -10/Exiles | Accompanied by 1 ally 1143 | -10/Exiles | Met 8R-AWN 1174 | -10/Exiles | Met EX-HEX 1312 | -10/Exiles | Met EX-DEC 1347 | -10/Exiles | Learned location of Zion (-7) 1503 | -10/Exiles | Met EX-BIN 1528 | -10/Exiles | Aligned with FarCom system 1530 | -10/Exiles | Given EX-Vault access code 1621 | -10/Exiles | Opened EX-Vault 1634 | -10/Exiles | Found Field Lobotomy Kit 1692 | -10/Exiles | Warned to stay clear of 0b10 Research branches 1878 | -10/Exiles | Visited The Gauntlet 2010 | -10/Exiles | Discovered new exit (range 11) 2028 | -10/Exiles | Left Exiles lab with Field Lobotomy Kit 2028 | -10/Exiles | Entered Mines 2028 | -9/Mines | Accompanied by 1 ally 2756 | -9/Mines | Learned location of Storage (-7) 2880 | -9/Mines | Core integrity fell below 50% 3220 | -9/Mines | Discovered new exit (range 6) 3490 | -9/Mines | Discovered new exit (range 7) 3685 | -9/Mines | Entered Materials 3685 | -8/Materials | Accompanied by 2 allies 3685 | -8/Materials | Evolved 4 slots: Utility x4 3690 | -8/Materials | Led the pair of lost Derelicts to an unsafe place 3785 | -8/Materials | Repaired Grenade Launcher 3952 | -8/Materials | Garrison activated, responded to threat 4329 | -8/Materials | Discovered new exit (range 4) 4885 | -8/Materials | First assault squad dispatched 5036 | -8/Materials | Build established: Scavenger-Mutant 5311 | -8/Materials | Discovered new exit (range 4) 5376 | -8/Materials | Build established: Hauler-Mutant 5843 | -8/Materials | Lost 4 parts (2p1n1u) 6103 | -8/Materials | Core integrity fell below 50% 6404 | -8/Materials | Garrison activated, responded to threat 6558 | -8/Materials | Core integrity fell below 20% 6596 | -8/Materials | Lost 3 parts (1n2w) 7193 | -8/Materials | Discovered new exit (range 13) 7282 | -8/Materials | Core destroyed Last Messages --------------- 07255_ U-05 Engineer lays Concrete. 07256_ Acquired Prototype Energy Gun. [Achievement: Packrat] 07258_ K-01 Serf collects debris. 07264_ U-05 Engineer lays Concrete. 07272_ Dropped Deuterium Engine. 07273_ U-05 Engineer lays Concrete. 07273_ Dropped Lgt. Armor Plating. 07273_ Acquired Imp. Targeting Computer. 07274_ U-05 Engineer lays Concrete. 07277_ U-05 Engineer builds a Wall. 07280_ B-36 Bruiser destroyed. 07280_ Door malfunctions. 07280_ Destroyed Imp. Heat Sink. 07280_ Terminal disabled. 07280_ Destroyed Lgt. Ion Engine. 07280_ Aluminum Leg destroyed. 07280_ Destroyed Aluminum Leg. 07282_ G-47 Trooper destroyed. 07282_ K-01 Serf collects debris. Map ----- +----------------------------------------------------+ | ???????????????????# #????###???# | | ???????????????????# #?????????## | | ???????????????????# !! #?????????## | | ???????????????????# !! #?????????## | | ???????????????????# ^ !! #?????????## | | ???????????????????# #?????????## | | ???????????????????# g #??????????# | | ???????????????????# g +??????????# | | ???????????????????# ^ #??????????# | | ???????????????????#gg ! #??????????# | | ???????????????????#g^ " #??????????# | | ?????????######+#### T #??????????# | | ?????????# g " #??????????# | | ?????????# < ######?##??# | | ?????????# [ ## =#??# | | ?????????##### ######## ## """ #??# | | ?????????????# ######## ## """ #### | | ????????????## # ## ## """ # | | ????????????#T k "" # # #"" | | ????????????## ; # o # """ #"" | | ??????????###" ; ; % + """ #"T | | ???????# ! ; ; # """ #"" | | ????########## ""#; ; ; # #"" | | ????# ! [% # ; ;;# ### """ # | | ????# # k;= ;;# ### """ # ! | | ????# * ;@ ;% g ;% + """ #### | | ????# !! ! [;@ %*## # #??? | | ????# !!! [ ;## ########### | | ????# !!! % # r | | ????########## ## [ ! ############### | | ?????????????##?# #?????????????? | | ????????????????### #?????????????? | | ??????????????????# # #?????????????? | | ??????????????????# #########?????????????? | | ??????????????????# #?????????????????????? | | ??????????????????# #?????????????????????? | | ??????????????????# #?????????????????????? | | ??????????????????# #?????????????????????? | | ????????????o????? #??????????????????#### | | ?????????????????? +??????????????????# | | ??????????????????####??????????????????# | | ????????????????????????????????????????# | | ????????????????????????????????????????# | | ????????????????????????????????????????# "S | | ????????????????????????????????????????# "" | | ????????????????????????????????????????# " | | ????????????????????????????????????????# | | ????????????????????????????????????????#### | | ???????????????????????????????????????????# | | ???????????????????????????????????????????# | +----------------------------------------------------+ Best States ------------- Heat Dissipation 45 Energy Generation 14 Energy Capacity 240 Matter Stores 300 Matter Capacity 300 Sight Range 16 Terrain Scan Density 10 Armor Coverage 225 Evasion (%) 40 Item Schematics ----------------- Shock Bomb Launcher | -8/Materials | Scanalyzed Arc Projector | -8/Materials | Scanalyzed Robot Schematics ------------------ None Fabricated ------------ Nothing Alien Tech Used ----------------- None Achievements -------------- Collateral Damage Generalissimo Packrat Challenges ------------ None Player 2 | -11 -10 -10 -10 -9 -8 ---------- Run | Scr Mat Min Exi Min Mat Slots Evolved 4 | . . . . 4 . Power . | . . . . . . Propulsion 1 | . . . . 1 . Utility 2 | . . . . 2 . Weapon 1 | . . . . 1 . Parts Attached 73 | . 16 . 4 6 47 Parts Lost 6 | . . . . . 6 Damage Taken 2597 | . 248 . . 329 2020 Core 226 | . 18 . . 35 173 Player 2/Cogmind (%) 30 | . 47 . . 24 31 Absorbed by Shields . | . . . . . . Damage Inflicted 6776 | . 408 . . 438 5930 Player 2/Cogmind (%) 55 | . 39 . . 50 58 Combat Hostiles Destroyed 71 | . 8 . . 7 56 Player 2/Cogmind (%) 61 | . 53 . . 38 67 Game ------ Seed I AM ERROR Manual? 1 Play Time 01:06:09 Cumulative 13.2 hours Start 2020.09.21 @ 07:21:06 End 2020.09.21 @ 08:26:49 Sessions 1 Manual Loads 0 Difficulty Rogue Special Mode AFD2020/Player2 Game No. 20 Rogue 20 Adventurer 0 Explorer 0 Win Type - Total 0 Types 0/0/0/0/0/0/0/0/0 Lore% 10 Gallery% 15 Achievement% 19 Wizard Run 0 Options --------- ASCII 0 Keyboard 0 Movement Mouse Keybinds 0 Fullscreen 1 Font 18/X11 Map View 76x50 Tactical HUD 1 Map Filters NONE Filters NONE Steam 0 RUN: 74fe5850-6d31-4c4c-b389-dcac7b2a5f55